fUSD/lending_fUSD_20251115
["ID","MTS","AMOUNT","RATE_DAILY","PERIOD"]
[394039190,1763210081929,-469.41668669,0.00041318,120]
[394039191,1763210081968,-500.0,0.00041318,120]
[394039192,1763210082006,-500.0,0.00041318,120]
[394039193,1763210082043,-616.64371516,0.00041318,120]
[394039194,1763210082082,-500.0,0.00041318,120]
[394039195,1763210082120,-500.0,0.00041318,120]
[394039196,1763210082156,-500.0,0.00041318,120]
[394039197,1763210082193,-500.0,0.00041318,120]
[394039198,1763210082229,-509.82289346,0.00041318,120]
[394039199,1763210082266,-500.0,0.00041318,120]
[394039200,1763210082302,-500.0,0.00041318,120]
[394039201,1763210082341,-500.0,0.00041318,120]
[394039202,1763210082377,-500.0,0.00041318,120]
[394039203,1763210082416,-500.0,0.00041318,120]
[394039204,1763210082449,-569.00116113,0.00041318,120]
[394039205,1763210082482,-500.0,0.00041318,120]
[394039206,1763210082515,-206.80082723,0.00041318,120]
[394039207,1763210082548,-500.0,0.00041318,120]
[394039208,1763210082582,-500.0,0.00041318,120]
[394039209,1763210082771,-500.0,0.00041318,120]
[394039210,1763210082805,-527.5974809,0.00041318,120]
[394039211,1763210082839,-500.0,0.00041318,120]
[394039212,1763210082873,-500.0,0.00041318,120]
[394039213,1763210082908,-500.0,0.00041318,120]
[394039214,1763210082943,-500.0,0.00041318,120]
[394039215,1763210082977,-500.0,0.00041318,120]
[394039216,1763210083012,-500.0,0.00041318,120]
[394039217,1763210083045,-500.0,0.00041318,120]
[394039218,1763210083080,-500.0,0.00041318,120]
[394039219,1763210083114,-500.0,0.00041318,120]
[394039220,1763210083149,-500.0,0.00041318,120]
[394039221,1763210083185,-531.72541028,0.00041318,120]
[394039222,1763210083221,-617.50029308,0.00041318,120]
[394039223,1763210083255,-490.51251842,0.00041318,120]
[394039224,1763210083291,-500.0,0.00041318,120]
[394039225,1763210083328,-500.0,0.00041318,120]
[394039226,1763210083364,-312.64781939,0.00041318,120]
[394039227,1763210083398,-159.39224277,0.00041318,120]
[394039228,1763210083432,-500.0,0.00041318,120]
[394039229,1763210083467,-500.0,0.00041318,120]
[394039230,1763210083502,-500.0,0.00041318,120]
[394039231,1763210083536,-500.0,0.00041318,120]
[394039232,1763210083571,-500.0,0.00041318,120]
[394039233,1763210083607,-500.0,0.00041318,120]
[394039234,1763210083643,-500.0,0.00041318,120]
[394039235,1763210083679,-353.60922363,0.00041318,120]
[394039236,1763210083718,-500.0,0.00041318,120]
[394039237,1763210083759,-500.0,0.00041318,120]
[394039238,1763210083796,-163.60448321,0.00041318,120]
[394039239,1763210083832,-500.0,0.00041318,120]
[394039240,1763210083868,-264.73741239,0.00041318,120]
[394039241,1763210083906,-383.65752534,0.00041318,120]
[394039242,1763210083948,-500.0,0.00041318,120]
[394039243,1763210083988,-500.0,0.00041318,120]
[394039244,1763210084027,-500.0,0.00041318,120]
[394039245,1763210084061,-556.26602717,0.00041318,120]
[394039246,1763210084103,-500.0,0.00041318,120]
[394039247,1763210084137,-500.0,0.00041318,120]
[394039248,1763210084171,-500.0,0.00041318,120]
[394039249,1763210084204,-500.0,0.00041318,120]
[394039250,1763210084238,-190.58430452,0.00041318,120]
[394039251,1763210084273,-584.4582649,0.00041318,120]
[394039252,1763210084310,-500.0,0.00041318,120]
[394039253,1763210084344,-500.0,0.00041318,120]
[394039254,1763210084380,-531.45661519,0.00041318,120]
[394039255,1763210084415,-500.0,0.00041318,120]
[394039256,1763210084448,-500.0,0.00041318,120]
[394039257,1763210084482,-519.48006897,0.00041318,120]
[394039258,1763210084516,-500.0,0.00041318,120]
[394039259,1763210084549,-500.0,0.00041318,120]
[394039260,1763210084583,-500.0,0.00041318,120]
[394039261,1763210084616,-500.0,0.00041318,120]
[394039262,1763210084650,-500.0,0.00041318,120]
[394039263,1763210084684,-500.0,0.00041318,120]
[394039264,1763210084720,-500.0,0.00041318,120]
[394039265,1763210084755,-157.98,0.00041318,120]
[394039266,1763210084788,-500.0,0.00041318,120]
[394039267,1763210084822,-500.0,0.00041318,120]
[394039268,1763210084856,-500.0,0.00041318,120]
[394039269,1763210084890,-500.0,0.00041318,120]
[394039270,1763210084924,-500.0,0.00041318,120]
[394039271,1763210084958,-500.0,0.00041318,120]
[394039272,1763210084993,-303.175543,0.00041318,120]
[394039273,1763210085027,-236.23307389,0.00041318,120]
[394039274,1763210085060,-165.32014821,0.00041318,120]
[394039275,1763210085094,-461.06841851,0.00041318,120]
[394039276,1763210085132,-500.0,0.00041318,120]
[394039277,1763210085167,-500.0,0.00041318,120]
[394039278,1763210085201,-500.0,0.00041318,120]
[394039279,1763210085236,-500.0,0.00041318,120]
[394039280,1763210085272,-500.0,0.00041318,120]
[394039281,1763210085312,-500.0,0.00041318,120]
[394039282,1763210085347,-542.67263196,0.00041318,120]
[394039283,1763210085381,-610.6252515,0.00041318,120]
[394039284,1763210085415,-500.0,0.00041318,120]
[394039285,1763210085449,-500.0,0.00041318,120]
[394039286,1763210085483,-500.0,0.00041318,120]
[394039287,1763210085517,-500.0,0.00041318,120]
[394039288,1763210085551,-549.90774779,0.00041318,120]
[394039289,1763210085585,-500.0,0.00041318,120]
[394039290,1763210085618,-400.0,0.00041318,120]
[394039291,1763210085650,-221.04987003,0.00041318,120]
[394039292,1763210085684,-581.04,0.00041318,120]
[394039293,1763210085719,-581.04,0.00041318,120]
[394039294,1763210085754,-500.0,0.00041318,120]
[394039295,1763210085788,-581.04,0.00041318,120]
[394039296,1763210085821,-500.0,0.00041318,120]
[394039297,1763210085855,-581.04,0.00041318,120]
[394039298,1763210085888,-500.0,0.00041318,120]
[394039299,1763210085923,-500.0,0.00041318,120]
[394039300,1763210085958,-581.04,0.00041318,120]
[394039301,1763210085991,-586.13984424,0.00041318,120]
[394039302,1763210086024,-208.42142809,0.00041318,120]
[394039303,1763210086057,-406.67968012,0.00041318,120]
[394039304,1763210086091,-581.04,0.00041318,120]
[394039305,1763210086126,-393.07644479,0.00041318,120]
[394039306,1763210086161,-581.04,0.00041318,120]
[394039307,1763210086198,-581.04,0.00041318,120]
[394039308,1763210086236,-581.04,0.00041318,120]
[394039309,1763210086272,-581.04,0.00041318,120]
[394039310,1763210086313,-581.04,0.00041318,120]
[394039311,1763210086353,-581.04,0.00041318,120]
[394039312,1763210086395,-581.04,0.00041318,120]
[394039313,1763210086435,-581.04,0.00041318,120]
[394039314,1763210086635,-581.04,0.00041318,120]
[394039315,1763210086675,-500.0,0.00041318,120]
[394039316,1763210086715,-581.04,0.00041318,120]
[394039317,1763210086754,-406.24744518,0.00041318,120]
[394039318,1763210086792,-581.04,0.00041318,120]
[394039319,1763210086831,-581.04,0.00041318,120]
[394039320,1763210086869,-581.04,0.00041318,120]
[394039321,1763210086906,-581.04,0.00041318,120]
[394039322,1763210086948,-581.04,0.00041318,120]
[394039323,1763210086989,-581.04,0.00041318,120]
[394039324,1763210087030,-581.04,0.00041318,120]
[394039325,1763210087071,-581.15052862,0.00041318,120]
[394039326,1763210087117,-235.19694907,0.00041318,120]
[394039327,1763210087161,-500.0,0.00041318,120]
[394039328,1763210087202,-500.0,0.00041318,120]
[394039329,1763210087241,-500.0,0.00041318,120]
[394039330,1763210087279,-290.89017519,0.00041318,120]
[394039331,1763210087316,-500.0,0.00041318,120]
[394039332,1763210087351,-500.0,0.00041318,120]
[394039333,1763210087387,-500.0,0.00041318,120]
[394039334,1763210087421,-468.19785942,0.00041318,120]
[394039335,1763210087454,-504.10116825,0.00041318,120]
[394039336,1763210087487,-500.0,0.00041318,120]
[394039337,1763210087520,-500.0,0.00041318,120]
[394039338,1763210087553,-500.0,0.00041318,120]
[394039339,1763210087585,-500.0,0.00041318,120]
[394039340,1763210087618,-500.0,0.00041318,120]
[394039341,1763210087650,-393.82118685,0.00041318,120]
[394039342,1763210087683,-193.79511379,0.00041318,120]
[394039343,1763210087716,-500.0,0.00041318,120]
[394039344,1763210087749,-500.0,0.00041318,120]
[394039345,1763210087783,-500.0,0.00041318,120]
[394039346,1763210087816,-500.0,0.00041318,120]
[394039347,1763210087848,-500.0,0.00041318,120]
[394039348,1763210087882,-492.27494761,0.00041318,120]
[394039349,1763210087917,-500.0,0.00041318,120]
[394039350,1763210087953,-500.0,0.00041318,120]
[394039351,1763210087988,-421.40379766,0.00041318,120]
[394039352,1763210088022,-500.0,0.00041318,120]
[394039353,1763210088059,-500.0,0.00041318,120]
[394039354,1763210088097,-500.0,0.00041318,120]
[394039355,1763210088136,-500.0,0.00041318,120]
[394039356,1763210088173,-408.26520629,0.00041318,120]
[394039357,1763210088207,-500.0,0.00041318,120]
[394039358,1763210088242,-500.0,0.00041318,120]
[394039359,1763210088279,-544.65534829,0.00041318,120]
[394039360,1763210088315,-500.0,0.00041318,120]
[394039361,1763210088352,-500.0,0.00041318,120]
[394039362,1763210088388,-500.0,0.00041318,120]
[394039363,1763210088421,-559.10928376,0.00041318,120]
[394039364,1763210088460,-500.0,0.00041318,120]
[394039365,1763210088494,-500.0,0.00041318,120]
[394039366,1763210088529,-500.0,0.00041318,120]
[394039367,1763210088563,-500.0,0.00041318,120]
[394039368,1763210088596,-406.84767991,0.00041318,120]
[394039369,1763210088630,-340.68633069,0.00041318,120]
[394039370,1763210088664,-500.0,0.00041318,120]
[394039371,1763210088700,-500.0,0.00041318,120]
[394039372,1763210088734,-500.0,0.00041318,120]
[394039373,1763210088768,-470.42391109,0.00041318,120]
[394039374,1763210088802,-500.0,0.00041318,120]
[394039375,1763210088836,-500.0,0.00041318,120]
[394039376,1763210088871,-500.0,0.00041318,120]
[394039377,1763210088910,-466.23659719,0.00041318,120]
[394039378,1763210088951,-500.0,0.00041318,120]
[394039379,1763210088991,-500.0,0.00041318,120]
[394039380,1763210089028,-631.73519301,0.00041318,120]
[394039381,1763210089067,-303.68183662,0.00041318,120]
[394039382,1763210089106,-500.0,0.00041318,120]
[394039383,1763210089145,-500.0,0.00041318,120]
[394039384,1763210089186,-500.0,0.00041318,120]
[394039385,1763210089222,-500.0,0.00041318,120]
[394039386,1763210089256,-431.43789087,0.00041318,120]
[394039387,1763210089290,-603.31272631,0.00041318,120]
[394039388,1763210089325,-500.0,0.00041318,120]
[394039389,1763210089358,-590.00263069,0.00041318,120]
[394039390,1763210089392,-500.0,0.00041318,120]
[394039391,1763210089425,-264.80682791,0.00041318,120]
[394039392,1763210089459,-430.48594898,0.00041318,120]
[394039393,1763210089492,-500.0,0.00041318,120]
[394039394,1763210089525,-500.0,0.00041318,120]
[394039395,1763210089558,-500.0,0.00041318,120]
[394039396,1763210089592,-500.0,0.00041318,120]
[394039397,1763210089625,-500.0,0.00041318,120]
[394039398,1763210089660,-500.0,0.00041318,120]
[394039399,1763210089698,-521.31214669,0.00041318,120]
[394039400,1763210089735,-500.0,0.00041318,120]
[394039401,1763210089769,-452.56105166,0.00041318,120]
[394039402,1763210089804,-500.0,0.00041318,120]
[394039403,1763210089838,-186.33334408,0.00041318,120]
[394039404,1763210089873,-500.0,0.00041318,120]
[394039405,1763210089906,-500.0,0.00041318,120]
[394039406,1763210089939,-636.38096404,0.00041318,120]
[394039407,1763210089972,-500.0,0.00041318,120]
[394039408,1763210090008,-500.0,0.00041318,120]
[394039409,1763210090043,-500.0,0.00041318,120]
[394039410,1763210090079,-500.0,0.00041318,120]
[394039411,1763210090115,-500.0,0.00041318,120]
[394039412,1763210090151,-500.0,0.00041318,120]
[394039413,1763210090186,-326.90358031,0.00041318,120]
[394039414,1763210090226,-500.0,0.00041318,120]
[394039415,1763210090261,-500.0,0.00041318,120]
[394039416,1763210090296,-500.0,0.00041318,120]
[394039417,1763210090335,-500.0,0.00041318,120]
[394039418,1763210090554,-196.97651146,0.00041318,120]
[394039419,1763210090588,-500.0,0.00041318,120]
[394039420,1763210090620,-500.0,0.00041318,120]
[394039421,1763210090655,-510.12708927,0.00041318,120]
[394039422,1763210090688,-500.0,0.00041318,120]
[394039423,1763210090720,-500.0,0.00041318,120]
[394039424,1763210090753,-500.0,0.00041318,120]
[394039425,1763210090786,-500.0,0.00041318,120]
[394039426,1763210090832,-397.11694462,0.00041318,120]
[394039427,1763210090869,-500.0,0.00041318,120]
[394039428,1763210090905,-500.0,0.00041318,120]
[394039429,1763210090942,-500.0,0.00041318,120]
[394039430,1763210090978,-500.0,0.00041318,120]
[394039431,1763210091014,-500.0,0.00041318,120]
[394039432,1763210091050,-500.0,0.00041318,120]
[394039433,1763210091086,-500.0,0.00041318,120]
[394039434,1763210091120,-265.70167899,0.00041318,120]
[394039435,1763210091158,-500.0,0.00041318,120]
[394039436,1763210091193,-500.0,0.00041318,120]
[394039437,1763210091229,-282.06135835,0.00041318,120]
[394039438,1763210091264,-508.35710952,0.00041318,120]
[394039439,1763210091299,-500.0,0.00041318,120]
[394039440,1763210091337,-500.0,0.00041318,120]
[394039441,1763210091372,-500.0,0.00041318,120]
[394039442,1763210091415,-500.0,0.00041318,120]
[394039443,1763210091453,-502.77749017,0.00041318,120]
[394039444,1763210091489,-500.0,0.00041318,120]
[394039445,1763210091524,-500.0,0.00041318,120]
[394039446,1763210091559,-500.0,0.00041318,120]
[394039447,1763210091593,-500.0,0.00041318,120]
[394039448,1763210091629,-500.0,0.00041318,120]
[394039449,1763210091665,-500.0,0.00041318,120]
[394039450,1763210091706,-500.0,0.00041318,120]
[394039451,1763210091748,-500.0,0.00041318,120]
[394039452,1763210091783,-500.0,0.00041318,120]
[394039453,1763210091820,-500.0,0.00041318,120]
[394039454,1763210091856,-500.0,0.00041318,120]
[394039455,1763210091892,-500.0,0.00041318,120]
[394039456,1763210091929,-500.0,0.00041318,120]
[394039457,1763210091967,-500.0,0.00041318,120]
[394039458,1763210092004,-500.0,0.00041318,120]
[394039459,1763210092043,-500.0,0.00041318,120]
[394039460,1763210092081,-500.0,0.00041318,120]
[394039461,1763210092118,-500.0,0.00041318,120]
[394039462,1763210092156,-606.53520154,0.00041318,120]
[394039463,1763210092193,-238.29634407,0.00041318,120]
[394039464,1763210092235,-500.0,0.00041318,120]
[394039465,1763210092277,-500.0,0.00041318,120]
[394039466,1763210092320,-500.0,0.00041318,120]
[394039467,1763210092360,-500.0,0.00041318,120]
[394039468,1763210092399,-500.0,0.00041318,120]
[394039469,1763210092439,-500.0,0.00041318,120]
[394039470,1763210092478,-500.0,0.00041318,120]
[394039471,1763210092515,-500.0,0.00041318,120]
[394039472,1763210092552,-500.0,0.00041318,120]
[394039473,1763210092588,-500.0,0.00041318,120]
[394039474,1763210092624,-500.0,0.00041318,120]
[394039475,1763210092662,-221.45264589,0.00041318,120]
[394039476,1763210092700,-500.0,0.00041318,120]
[394039477,1763210092738,-606.57841627,0.00041318,120]
[394039478,1763210092774,-500.0,0.00041318,120]
[394039479,1763210092807,-432.61580749,0.00041318,120]
[394039480,1763210092843,-502.87737247,0.00041318,90]
[394039481,1763210092879,-500.0,0.00041318,120]
[394039482,1763210092922,-500.0,0.00041318,120]
[394039483,1763210092966,-500.0,0.00041318,120]
[394039484,1763210093009,-452.88130671,0.00041318,120]
[394039485,1763210093054,-500.0,0.00041318,120]
[394039486,1763210093091,-409.42314857,0.00041318,120]
[394039487,1763210093129,-500.0,0.00041318,120]
[394039488,1763210093167,-500.0,0.00041318,120]
[394039489,1763210093204,-500.0,0.00041318,120]
[394039490,1763210093241,-500.0,0.00041318,120]
[394039491,1763210093277,-500.0,0.00041318,120]
[394039492,1763210093322,-157.60460639,0.00041318,120]
[394039493,1763210093375,-500.0,0.00041318,120]
[394039494,1763210093424,-500.0,0.00041318,120]
[394039495,1763210093465,-500.0,0.00041318,120]
[394039496,1763210093502,-500.0,0.00041318,120]
[394039497,1763210093538,-500.0,0.00041318,120]
[394039498,1763210093578,-321.7256504,0.00041318,120]
[394039499,1763210093616,-500.0,0.00041318,120]
[394039500,1763210093656,-407.29294236,0.00041318,120]
[394039501,1763210093701,-500.0,0.00041318,120]
[394039502,1763210093740,-500.0,0.00041318,120]
[394039503,1763210093777,-500.0,0.00041318,120]
[394039504,1763210093815,-500.0,0.00041318,120]
[394039505,1763210093852,-383.46052354,0.00041318,120]
[394039506,1763210093892,-500.0,0.00041318,120]
[394039507,1763210093932,-410.39391669,0.00041318,120]
[394039508,1763210093971,-500.0,0.00041318,120]
[394039509,1763210094007,-309.18135764,0.00041318,120]
[394039510,1763210094042,-405.27886381,0.00041318,120]
[394039511,1763210094080,-408.41107305,0.00041318,120]
[394039512,1763210094119,-401.08115969,0.00041318,120]
[394039513,1763210094159,-206318.44243818,0.00041318,30]
[394039514,1763210094202,-266113.871,0.00041318,30]
[394039515,1763210094242,-332.7,0.00041318,60]
[394039516,1763210094279,-579.00357463,0.00041318,120]
[394039517,1763210094317,-343.45713889,0.00041318,120]
[394039518,1763210094356,-394.32496792,0.00041318,120]
[394039519,1763210094391,-522.48103378,0.00041318,120]
[394039520,1763210094424,-500.0,0.00041318,120]
[394039521,1763210094458,-513.96044825,0.00041318,120]
[394039522,1763210094667,-500.0,0.00041318,120]
[394039523,1763210094707,-50000.0,0.00041318,30]
[394039524,1763210094744,-50000.0,0.00041318,31]
[394039525,1763210094778,-500.0,0.00041318,120]
[394039526,1763210094812,-499.5984009,0.00041318,120]
[394039527,1763210094846,-272.66962209,0.00041318,120]
[394039528,1763210094880,-3212.30558865,0.00041318,120]
[394039529,1763210094918,-507.50726473,0.00041318,120]
[394039530,1763210094955,-209.333562,0.00041318,30]
[394039531,1763210094993,-209.333562,0.00041318,30]
[394039532,1763210095031,-160.892559,0.00041318,30]
[394039533,1763210095066,-160.892559,0.00041318,30]
[394039534,1763210095100,-160.892559,0.00041318,30]
[394039535,1763210095135,-160.892559,0.00041318,30]
[394039536,1763210095175,-500.0,0.00041318,120]
[394039537,1763210095213,-500.0,0.00041318,120]
[394039538,1763210095250,-500.0,0.00041318,120]
[394039539,1763210095289,-632.5006516,0.00041318,120]
[394039540,1763210095328,-1095.0,0.00041318,30]
[394039541,1763210095368,-1095.0,0.00041318,30]
[394039542,1763210095406,-1095.0,0.00041318,30]
[394039543,1763210095442,-509.05872705,0.00041318,120]
[394039544,1763210095480,-349.91,0.00041318,120]
[394039545,1763210095517,-349.91,0.00041318,120]
[394039546,1763210095557,-349.91,0.00041318,120]
[394039547,1763210095597,-349.91,0.00041318,120]
[394039548,1763210095638,-349.91,0.00041318,120]
[394039549,1763210095676,-349.91,0.00041318,120]
[394039550,1763210095713,-349.91,0.00041318,120]
[394039551,1763210095750,-349.91,0.00041318,120]
[394039552,1763210095786,-349.91,0.00041318,120]
[394039553,1763210095826,-349.91,0.00041318,120]
[394039554,1763210095863,-349.91,0.00041318,120]
[394039555,1763210095903,-349.91,0.00041318,120]
[394039556,1763210095943,-349.91,0.00041318,120]
[394039557,1763210095981,-349.91,0.00041318,120]
[394039558,1763210096016,-349.91,0.00041318,120]
[394039559,1763210096051,-349.91,0.00041318,120]
[394039560,1763210096085,-349.91,0.00041318,120]
[394039561,1763210096119,-349.91,0.00041318,120]
[394039562,1763210096154,-349.91,0.00041318,120]
[394039563,1763210096188,-349.91,0.00041318,120]
[394039564,1763210096223,-349.91,0.00041318,120]
[394039565,1763210096259,-349.91,0.00041318,120]
[394039566,1763210096293,-349.91,0.00041318,120]
[394039567,1763210096329,-350.07952638,0.00041318,120]
[394039568,1763210096363,-1000.0,0.00041318,120]
[394039569,1763210096396,-1000.0,0.00041318,120]
[394039570,1763210096430,-1000.0,0.00041318,120]
[394039571,1763210096464,-163.550441,0.00041318,120]
[394039572,1763210096497,-163.550441,0.00041318,120]
[394039573,1763210096532,-2999.999999,0.00041318,30]
[394039574,1763210096567,-500.0,0.00041318,120]
[394039575,1763210096601,-500.0,0.00041318,120]
[394039576,1763210096643,-500.0,0.00041318,120]
[394039577,1763210096678,-500.0,0.00041318,120]
[394039578,1763210096717,-598.23422874,0.00041318,120]
[394039579,1763210096752,-200.0,0.00041318,30]
[394039580,1763210163799,200.0,0.00041318,30]
[394039582,1763210378980,-1000.0,0.00015798,2]
[394039583,1763210381170,-200.0,0.00015798,2]
[394039584,1763210381194,-300.0,0.00015798,2]
[394039585,1763210381215,-500.0,0.00015799,2]
[394039586,1763210383696,-1000.0,0.00015799,2]
[394039587,1763210384517,-1000.0,0.00015799,2]
[394039588,1763210385431,-1000.0,0.00015799,2]
[394039589,1763210386175,-1000.0,0.00015799,2]
[394039590,1763210386906,-1000.0,0.00015799,2]
[394039591,1763210387831,-842.55575878,0.00015799,2]
[394039592,1763210387852,-150.19343357,0.000158,2]
[394039593,1763210428019,7.25080765,0.00015799,2]
[394039594,1763210460582,200.0,0.00041318,30]
[394039595,1763210470806,500.0,0.00015655,2]
[394039596,1763210493107,411.028,0.00015581,2]
[394039597,1763210514773,700.77,0.00013699,2]
[394039600,1763210555574,1000.0,0.00015616,2]
[394039601,1763210579555,250.0,0.00015616,2]
[394039602,1763210614322,500.0,0.00041318,120]
[394039603,1763210614584,500.0,0.00041318,120]
[394039604,1763210614824,500.0,0.00041318,120]
[394039605,1763210615079,500.0,0.00041318,120]
[394039606,1763210615315,500.0,0.00041318,120]
[394039607,1763210615573,500.0,0.00041318,120]
[394039608,1763210615822,500.0,0.00041318,120]
[394039609,1763210616082,500.0,0.00041318,120]
[394039610,1763210616357,291.50448181,0.00041318,120]
[394039612,1763210640871,150.0,0.00015618,2]
[394039673,1763210760871,200.0,0.00041318,30]
[394039676,1763210798723,623.7,0.00015623,2]
[394039811,1763210845657,-222.2113773,0.00015687,2]
[394039824,1763210921768,-150.0,0.00015697,2]
[394039935,1763211031662,-1200.0,0.00015798,2]
[394039936,1763211031671,-300.0,0.00015798,2]
[394039937,1763211031681,-31022.8862,0.00015799,2]
[394039938,1763211031690,-1000.0,0.00015799,2]
[394039939,1763211031700,-4000.0,0.00015799,2]
[394039940,1763211031709,-200.0,0.00015822,2]
[394039941,1763211031719,-165.49342088,0.00015873,2]
[394039942,1763211031728,-500.0,0.00015873,2]
[394039943,1763211031737,-500.0,0.00015898,2]
[394039944,1763211031747,-500.0,0.00015898,2]
[394039945,1763211031756,-500.0,0.00015898,2]
[394039946,1763211031766,-1260.63348039,0.00015899,2]
[394039947,1763211031775,-500.0,0.00015999,2]
[394039948,1763211031784,-500.0,0.00015999,2]
[394039949,1763211031793,-257.73915746,0.00015999,2]
[394039950,1763211031803,-500.0,0.00015999,2]
[394039951,1763211031812,-500.0,0.00015999,2]
[394039952,1763211031821,-214.29,0.00016008,2]
[394039953,1763211031830,-1348.085706,0.00016031,2]
[394039954,1763211031839,-150.0,0.00016162,2]
[394039955,1763211031848,-500.0,0.00016164,2]
[394039956,1763211031857,-216.79158761,0.00016274,2]
[394039957,1763211031866,-500.0,0.00016296,2]
[394039958,1763211031875,-500.0,0.00016296,2]
[394039959,1763211031884,-500.0,0.00016296,2]
[394039960,1763211031893,-500.0,0.00016296,2]
[394039961,1763211031903,-500.0,0.00016296,2]
[394039962,1763211031921,-562.27093051,0.00016296,2]
[394039963,1763211031931,-199.71731436,0.00016296,2]
[394039964,1763211031942,-500.0,0.00016301,2]
[394039965,1763211031952,-500.0,0.0001632,2]
[394039966,1763211031961,-500.82679889,0.0001632,2]
[394039967,1763211031971,-160.11,0.00016355,2]
[394039968,1763211031982,-200.0,0.00016396,2]
[394039969,1763211031991,-500.0,0.00016411,2]
[394039970,1763211032001,-500.0,0.00016411,2]
[394039971,1763211032011,-1000.0,0.00016421,2]
[394039972,1763211032020,-381.49,0.00016438,2]
[394039973,1763211032029,-500.0,0.00016548,2]
[394039974,1763211032039,-237.36156548,0.00016595,2]
[394039975,1763211032048,-500.0,0.00016597,2]
[394039976,1763211032058,-403.57421905,0.00016597,2]
[394039977,1763211032067,-500.0,0.00016597,2]
[394039978,1763211032077,-500.0,0.00016597,2]
[394039979,1763211032086,-460.68390596,0.00016597,2]
[394039980,1763211032095,-4656.51,0.00016598,2]
[394039981,1763211032106,-500.0,0.00016712,2]
[394039982,1763211032115,-166.68,0.00016795,2]
[394039983,1763211032125,-1000.0,0.00016868,2]
[394039984,1763211032135,-500.0,0.00016877,2]
[394039986,1763211032144,-500.57601142,0.00016973,2]
[394039988,1763211032154,-42750.5043512,0.00016986,2]
[394039991,1763211032167,-1128.20244694,0.00016986,2]
[394039992,1763211032178,-740.87969791,0.00016986,2]
[394039993,1763211032190,-400.32646289,0.00016986,2]
[394039994,1763211032202,-509.33266233,0.00016986,2]
[394040000,1763211037532,-217.85376733,0.00016985,2]
[394040002,1763211037542,-84.78861595,0.00016986,2]
[394040003,1763211037589,-1057.76921385,0.00016986,2]
[394040012,1763211045077,-2500.0,0.00015799,2]
[394040013,1763211045086,-11124.06654893,0.00016986,2]
[394040014,1763211045099,-1502.5338562,0.00016999,2]
[394040016,1763211045109,-495.72336764,0.00016999,2]
[394040018,1763211045118,-155.95922646,0.00016999,2]
[394040020,1763211045127,-130259.05141761,0.00017,2]
[394040022,1763211045136,-250.0,0.00017,2]
[394040024,1763211045146,-300.0,0.00017116,2]
[394040026,1763211045155,-1799.345746,0.00017172,2]
[394040028,1763211045164,-420.0,0.00017276,2]
[394040030,1763211045174,-166.66,0.00017332,2]
[394040032,1763211045183,-1680.0,0.00017363,2]
[394040034,1763211045192,-193.7681594,0.00017378,2]
[394040036,1763211045202,-408.31362115,0.00017378,2]
[394040038,1763211045211,-300.0,0.00017378,2]
[394040041,1763211045220,-300.0,0.00017378,2]
[394040043,1763211045230,-195.0,0.00017378,2]
[394040045,1763211045239,-250.0,0.00017378,2]